bitfinex/quotes_SOLUSD_20240606
["timestamp","ask_amount","ask_price","bid_price","bid_amount"]
[1717668905644,7.9252,172.48,172.45,6.5017]
[1717668905844,7.9252,172.48,172.45,8.6472]
[1717668906040,5.78,172.48,172.46,2.1454]
[1717668906244,7.9251,172.48,172.45,8.6472]
[1717668910348,2.1451,172.48,172.45,8.6472]
[1717668911752,5.78,172.49,172.45,8.6472]
[1717668912760,5.71719934,172.49,172.45,8.6472]
[1717668912944,2.1451,172.48,172.45,8.6472]
[1717668915165,2.1451,172.49,172.46,6.4243]
[1717668916864,2.1451,172.49,172.46,8.5697]
[1717668919669,2.1451,172.49,172.46,6.4243]
[1717668920948,2.1451,172.48,172.46,6.4243]
[1717668930590,2.1451,172.49,172.46,6.4243]
[1717668930964,2.1452,172.48,172.45,3.04248038]
[1717668931390,2.1452,172.48,172.45,5.18798038]
[1717668932974,2.1451,172.49,172.45,5.18798038]
[1717668934667,2.1452,172.48,172.45,5.18798038]
[1717668935290,2.1451,172.49,172.45,5.18798038]
[1717668937294,2.1451,172.49,172.46,2.1454]
[1717668937982,4.2895,172.52,172.47,2.1452]
[1717668938183,2.1449,172.5,172.47,2.1452]
[1717668938379,0.17,172.53,172.47,6.5638]
[1717668938605,2.1445,172.53,172.49,5.78]
[1717668938901,2.1445,172.54,172.5,2.1449]
[1717668939093,5.78,172.55,172.51,2.1447]
[1717668939475,10.7205,172.57,172.52,6.3503]
[1717668939680,6.4316,172.59,172.52,6.3503]
[1717668939894,2.1442,172.56,172.52,8.4949]
[1717668940086,2.1442,172.56,172.52,14.2749]
[1717668941206,2.1442,172.56,172.53,1.49504428]
[1717668942298,2.1441,172.57,172.53,3.63954428]
[1717668943203,2.1441,172.57,172.53,2.1445]
[1717668944486,7.9242,172.56,172.52,2.1446]
[1717668944687,5.78,172.55,172.52,2.1446]
[1717668945598,7.9242,172.56,172.52,2.1446]
[1717668947184,4.2884,172.56,172.48,9.28738038]
[1717668947390,5.78,172.51,172.48,2.145]
[1717668947590,7.9248,172.51,172.48,2.145]
[1717668947804,5.78,172.51,172.48,2.145]
[1717668947990,2.1447,172.52,172.48,2.145]
[1717668948185,5.78,172.51,172.49,2.145]
[1717668952402,2.1445,172.54,172.5,2.1449]
[1717668952600,0.34,172.53,172.5,2.1449]
[1717668952809,5.78,172.52,172.5,2.1449]
[1717668954003,5.78,172.52,172.49,2.1449]
[1717668959518,2.4845,172.53,172.49,2.1449]
[1717668959717,5.78,172.52,172.49,2.1449]
[1717668962815,7.9246,172.52,172.49,2.1449]
[1717668967807,1.76828033,172.51,172.45,3.04248038]
[1717668968130,5.78,172.48,172.45,2.1455]
[1717668968340,5.78,172.48,172.46,2.1454]
[1717668968522,5.78,172.48,172.45,2.1454]
[1717668969116,2.1453,172.47,172.44,3.86119538]
[1717668969318,5.78,172.45,172.44,3.86119538]
[1717668969629,5.78,172.45,172.44,0.818715]
[1717668970220,5.78,172.46,172.44,2.964315]
[1717668974314,5.78,172.46,172.45,2.1455]
[1717668974714,2.1452,172.48,172.45,2.1455]
[1717668974927,5.78,172.47,172.45,2.1455]
[1717668975522,7.9252,172.48,172.45,2.1455]
[1717668977313,2.1452,172.48,172.45,2.1455]
[1717668977838,2.1451,172.49,172.45,2.1454]
[1717668978429,2.1451,172.49,172.46,2.1454]
[1717668978633,2.1451,172.48,172.45,2.1454]
[1717668979946,7.9251,172.49,172.45,2.1454]
[1717668980324,2.1451,172.48,172.45,2.1454]
[1717668981417,7.9251,172.49,172.45,2.1454]
[1717668982144,2.1451,172.49,172.45,2.1454]
[1717668982319,7.9251,172.49,172.45,2.1454]
[1717668982641,7.9251,172.49,172.46,2.1454]
[1717668983840,2.1451,172.49,172.46,2.1454]
[1717668984138,2.1448,172.51,172.48,2.1451]
[1717668985643,2.1448,172.51,172.47,2.1452]
[1717668985822,2.1449,172.5,172.47,2.1452]
[1717668987124,2.1445,172.54,172.46,5.78]
[1717668987336,2.1446,172.52,172.49,2.1449]
[1717668987537,7.9246,172.52,172.49,2.1449]
[1717668988239,7.9246,172.52,172.48,2.1451]
[1717668988439,2.1448,172.51,172.48,2.1451]
[1717668989144,2.1447,172.52,172.47,5.78]
[1717668989437,2.1447,172.52,172.48,2.1451]
[1717668990025,2.1448,172.51,172.48,2.1451]
[1717668991045,2.1448,172.51,172.48,8.4134]
[1717668992547,2.1447,172.52,172.48,8.4134]
[1717668992747,2.1446,172.53,172.49,2.1449]
[1717668993124,2.1444,172.54,172.5,2.1448]
[1717668993634,2.1445,172.53,172.5,2.1448]
[1717668993859,2.1445,172.53,172.49,2.1449]
[1717668994143,2.1445,172.53,172.49,8.2229]
[1717668994522,2.1445,172.54,172.5,2.1448]
[1717668994723,2.1443,172.55,172.51,7.9247]
[1717668994925,2.1443,172.55,172.51,14.0027]
[1717668996146,2.1443,172.55,172.51,8.2227]
[1717668996347,2.1443,172.55,172.51,14.0027]
[1717668998554,2.1443,172.55,172.52,6.4649]
[1717669004055,2.1442,172.56,172.52,8.6095]
[1717669004258,2.1443,172.55,172.52,8.6095]
[1717669005060,2.1442,172.56,172.52,8.6095]
[1717669010055,2.1442,172.56,172.53,2.1444]
[1717669010443,2.1442,172.56,172.52,8.6095]
[1717669011667,2.1442,172.56,172.53,2.1445]
[1717669012774,7.9241,172.57,172.53,2.1445]
[1717669012962,2.1441,172.56,172.53,2.1445]
[1717669015573,5.78,172.57,172.53,2.1445]
[1717669015772,2.1441,172.56,172.53,2.1445]
[1717669018073,7.9241,172.57,172.53,2.1445]
[1717669019682,2.1441,172.56,172.53,2.1445]
[1717669020073,7.9241,172.57,172.53,2.1445]
[1717669020460,7.9241,172.57,172.54,2.1444]
[1717669020777,7.9241,172.57,172.52,6.4649]
[1717669021156,2.1441,172.57,172.53,2.1444]
[1717669021378,7.9241,172.57,172.53,2.1444]
[1717669022378,2.1441,172.56,172.53,2.1444]
[1717669024579,7.9241,172.57,172.53,2.1444]
[1717669024779,2.1441,172.57,172.53,2.1444]
[1717669024981,7.9241,172.57,172.53,2.1444]
[1717669025279,7.9241,172.57,172.54,2.1444]
[1717669025449,7.9241,172.57,172.52,6.4649]
[1717669025773,2.1441,172.56,172.53,2.1444]
[1717669026562,7.9241,172.57,172.53,2.1444]
[1717669027391,2.1441,172.56,172.53,2.1444]
[1717669027895,2.1441,172.56,172.52,8.6094]
[1717669028400,2.1441,172.56,172.53,2.1445]
[1717669033596,7.9241,172.57,172.53,2.1445]
[1717669035483,7.9242,172.56,172.52,2.1446]
[1717669036009,28.35450592,172.64,172.49,3.04248038]
[1717669036010,2.1447,172.52,172.49,3.04248038]
[1717669036198,2.1448,172.51,172.48,2.145]
[1717669036509,2.145,172.49,172.46,5.18778038]
[1717669036676,10.7234,172.52,172.44,7.247115]
[1717669036677,5.78,172.48,172.45,3.04248038]
[1717669036882,7.67795749,172.58,172.45,3.04248038]
[1717669036883,7.9253,172.47,172.45,3.04248038]
[1717669037800,5.78,172.46,172.44,3.86119538]
[1717669038500,5.78,172.46,172.44,0.818715]
[1717669043907,2.1453,172.47,172.44,0.818715]
[1717669044109,7.9253,172.47,172.44,0.818715]
[1717669044687,7.9253,172.47,172.44,2.964315]
[1717669044900,2.1454,172.46,172.44,0.818715]
[1717669046012,2.1455,172.45,172.44,0.818715]
[1717669046211,7.9254,172.46,172.44,0.818715]
[1717669048395,2.1455,172.45,172.44,0.818715]
[1717669049102,7.9255,172.46,172.44,0.818715]
[1717669057318,2.1455,172.45,172.44,0.818715]
[1717669058219,2.1455,172.46,172.44,0.818715]
[1717669058408,2.1453,172.47,172.44,0.818715]
[1717669058605,2.1453,172.47,172.44,2.964315]
[1717669059605,2.1451,172.48,172.45,2.1454]
[1717669060010,7.9251,172.49,172.46,2.1453]
[1717669060303,2.1451,172.49,172.45,2.1454]
[1717669061937,2.1452,172.48,172.45,2.1454]
[1717669062915,2.1453,172.47,172.44,2.964315]
[1717669063123,2.1453,172.47,172.44,0.818715]
[1717669063322,7.9253,172.47,172.44,0.818715]
[1717669063702,2.1455,172.45,172.44,0.818715]
[1717669063903,7.9255,172.45,172.44,0.818715]
[1717669064711,2.1455,172.45,172.44,0.818715]
[1717669064914,7.9255,172.45,172.44,0.818715]
[1717669065313,2.1455,172.45,172.44,0.818715]
[1717669065534,7.9255,172.45,172.44,0.818715]
[1717669065734,5.78,172.45,172.44,0.818715]
[1717669071527,7.9255,172.45,172.44,0.818715]
[1717669075330,2.1455,172.45,172.44,0.818715]
[1717669075532,7.9255,172.45,172.44,0.818715]
[1717669078047,2.1455,172.45,172.44,0.818715]
[1717669078552,7.9255,172.45,172.44,0.818715]
[1717669081052,5.78,172.45,172.44,0.818715]
[1717669081727,2.1454,172.46,172.44,0.818715]
[1717669082039,5.78,172.45,172.44,0.818715]
[1717669082346,2.1454,172.46,172.44,0.818715]
[1717669082547,5.78,172.45,172.44,0.818715]
[1717669082946,2.1454,172.46,172.44,0.818715]
[1717669083250,7.9254,172.46,172.44,0.818715]
[1717669083443,5.78,172.45,172.44,0.818715]
[1717669083647,7.9255,172.45,172.44,0.818715]
[1717669084257,5.78,172.45,172.44,0.818715]
[1717669085749,7.9255,172.45,172.44,0.818715]
[1717669090059,20.42138033,172.45,172.44,0.818715]
[1717669090240,8.20478033,172.45,172.44,0.818715]
[1717669090442,13.98478033,172.45,172.44,0.818715]
[1717669091453,29.00348033,172.45,172.44,0.818715]
[1717669091964,23.22348033,172.45,172.44,0.818715]
[1717669092143,27.2352,172.45,172.44,0.818715]
[1717669092454,39.4389,172.45,172.44,0.818715]
[1717669092760,84.7789,172.45,172.44,0.818715]
[1717669093564,78.9989,172.45,172.44,0.818715]
[1717669094448,72.5752,172.45,172.44,0.818715]
[1717669094654,84.5688,172.45,172.44,0.818715]
[1717669095438,101.9088,172.45,172.44,0.818715]
[1717669095645,78.7888,172.45,172.44,0.818715]
[1717669105479,84.5688,172.45,172.44,0.818715]
[1717669111871,2.1462,172.4,172.37,0.2013392]
[1717669112072,5.78,172.39,172.37,0.2013392]
[1717669114573,5.78,172.39,172.37,3.24381958]
[1717669114887,2.146,172.42,172.39,6.2813]
[1717669115057,44.25798758,172.51,172.39,6.2813]
[1717669115058,7.9258,172.43,172.39,6.2813]
[1717669115260,6.4366,172.45,172.39,6.2813]
[1717669115261,4.2911,172.45,172.39,6.2813]
[1717669115469,7.9257,172.44,172.4,6.3463]
[1717669115793,2.1457,172.44,172.4,6.3463]
[1717669115955,5.78,172.45,172.4,6.3463]
[1717669116160,2.1456,172.44,172.4,6.3463]
[1717669116476,2.1456,172.45,172.4,5.78]
[1717669116662,2.1456,172.45,172.42,6.2795]
[1717669117482,2.1456,172.44,172.42,6.2795]
[1717669118459,2.1456,172.44,172.41,3.04248038]
[1717669118864,2.1458,172.43,172.41,3.04248038]
[1717669119065,2.1458,172.43,172.4,25.27738038]
[1717669119782,2.1457,172.44,172.41,6.0274]
[1717669120891,2.1457,172.43,172.41,6.0274]
[1717669121197,2.1458,172.43,172.41,6.0274]
[1717669124294,2.1458,172.43,172.4,3.04248038]
[1717669124673,2.1458,172.43,172.39,9.70328038]
[1717669127191,7.9257,172.44,172.39,9.70328038]
[1717669127502,2.1458,172.43,172.39,9.70328038]
[1717669129100,5.78,172.43,172.39,3.04248038]
[1717669129271,2.1461,172.41,172.39,3.04248038]
[1717669129680,2.1461,172.41,172.38,3.04248038]
[1717669130295,7.9259,172.42,172.38,3.04248038]
[1717669131598,2.1462,172.39,172.38,3.04248038]
[1717669131804,2.1464,172.38,172.37,3.24381958]
[1717669131988,7.9264,172.38,172.37,0.2013392]
[1717669132583,5.78,172.38,172.37,0.2013392]
[1717669132980,2.1463,172.39,172.37,0.2013392]
[1717669133182,5.78,172.38,172.37,0.2013392]
[1717669133378,2.1463,172.39,172.37,0.2013392]
[1717669133599,5.78,172.38,172.37,0.2013392]
[1717669134494,2.1461,172.41,172.37,0.2013392]
[1717669134685,4.2914,172.44,172.37,12.0885392]
[1717669134886,2.1459,172.42,172.37,12.0885392]
[1717669135188,2.1459,172.42,172.38,3.04248038]
[1717669138099,2.146,172.41,172.38,3.04248038]
[1717669139698,2.1454,172.47,172.39,15.4121]
[1717669140005,2.1453,172.47,172.43,5.78]
[1717669140209,16.5053,172.49,172.43,5.78]
[1717669140516,2.1453,172.47,172.43,5.78]
[1717669140721,2.1453,172.47,172.43,3.04248038]
[1717669141094,2.1453,172.47,172.42,15.35408038]
[1717669141711,2.1454,172.46,172.42,15.35408038]
[1717669142405,7.9255,172.45,172.42,3.04248038]
[1717669142602,7.9257,172.44,172.4,3.04248038]
[1717669142803,7.9257,172.44,172.39,8.82248038]
[1717669143191,7.9257,172.44,172.4,3.04248038]
[1717669143394,2.1457,172.44,172.39,8.82248038]
[1717669144037,2.1456,172.45,172.39,8.82248038]
[1717669144314,4.2902,172.49,172.4,9.48918038]
[1717669144502,2.1453,172.47,172.41,5.78]
[1717669144700,7.9253,172.47,172.41,5.78]
[1717669145012,7.9253,172.47,172.41,8.82248038]
[1717669145210,2.1453,172.47,172.41,8.82248038]
[1717669145412,7.9253,172.47,172.41,8.82248038]
[1717669146016,2.1454,172.46,172.41,8.82248038]
[1717669147099,2.1454,172.46,172.41,5.78]
[1717669147930,2.1454,172.46,172.41,8.82248038]
[1717669148134,2.1454,172.46,172.41,5.78]
[1717669148745,49.6304,172.48,172.41,5.78]
[1717669148746,2.1455,172.45,172.41,5.78]
[1717669148910,2.1455,172.45,172.4,15.26918038]
[1717669149111,7.9254,172.46,172.4,15.26918038]
[1717669149836,2.1454,172.46,172.4,15.26918038]
[1717669150130,7.9254,172.46,172.4,15.26918038]
[1717669151024,2.1454,172.46,172.4,15.26918038]
[1717669151322,7.9254,172.46,172.4,15.26918038]
[1717669152631,2.1455,172.45,172.4,15.26918038]
[1717669153531,7.9255,172.46,172.4,15.26918038]
[1717669154735,2.1455,172.45,172.4,15.26918038]
[1717669154912,2.1455,172.45,172.4,9.48918038]
[1717669155231,2.1455,172.45,172.4,15.26918038]
[1717669155416,7.9254,172.46,172.41,6.3284]
[1717669155622,2.1454,172.46,172.41,12.1084]
[1717669156141,2.1454,172.46,172.41,15.15088038]
[1717669156637,2.1454,172.46,172.41,12.1084]
[1717669157834,2.1454,172.46,172.42,12.019]
[1717669158335,2.1454,172.46,172.42,6.239]
[1717669158511,2.1454,172.46,172.42,12.019]
[1717669159322,2.1451,172.48,172.43,5.78]
[1717669159534,2.1449,172.5,172.45,5.78]
[1717669159741,2.1448,172.51,172.46,5.78]
[1717669159909,2.1448,172.51,172.47,0.46212918]
[1717669160537,2.1449,172.5,172.47,2.60732918]
[1717669160724,2.1449,172.5,172.48,1.62091946]
[1717669161329,2.1449,172.5,172.47,3.76715186]
[1717669161729,2.1449,172.5,172.47,2.1452]
[1717669165340,2.1449,172.5,172.47,8.6368]
[1717669165659,2.1448,172.51,172.47,8.6368]
[1717669167325,19.2978,172.56,172.5,2.1448]
[1717669167531,2.1445,172.53,172.5,2.1448]
[1717669167740,2.1445,172.54,172.5,2.1448]
[1717669168639,2.1445,172.53,172.5,2.1448]
[1717669169234,2.1445,172.53,172.49,5.78]
[1717669169542,2.1445,172.53,172.49,12.1671]
[1717669171142,2.1445,172.53,172.49,5.78]
[1717669171341,2.1445,172.53,172.5,6.5178]
[1717669172942,4.2886,172.55,172.47,6.2788]
[1717669172943,2.1445,172.54,172.47,6.2788]
[1717669173449,2.1445,172.54,172.51,6.2788]
[1717669177651,2.1443,172.55,172.51,6.2788]
[1717669180042,2.1441,172.57,172.52,5.78]
[1717669180357,7.9241,172.57,172.52,12.0137]
[1717669181257,7.9241,172.57,172.53,6.3749]
[1717669187868,2.1441,172.57,172.53,6.3749]
[1717669188068,2.1439,172.59,172.53,6.3749]
[1717669188265,45.34,172.6,172.53,6.3749]
[1717669188448,2.1439,172.58,172.53,6.3749]
[1717669188645,2.144,172.57,172.53,6.1689]
[1717669188848,2.1439,172.59,172.53,6.1689]
[1717669189155,2.1437,172.6,172.54,0.51745679]
[1717669189460,7.9237,172.6,172.54,6.29745679]
[1717669189665,4.2865,172.64,172.56,6.5702]
[1717669189848,7.9235,172.62,172.56,12.3502]
[1717669190044,2.1435,172.61,172.57,6.1107]
[1717669190239,7.9235,172.61,172.57,6.1107]
[1717669191943,2.1434,172.62,172.56,6.5489]
[1717669192149,7.9234,172.62,172.56,12.3289]
[1717669192744,2.1434,172.62,172.57,5.78]
[1717669192948,2.1434,172.62,172.58,6.0657]
[1717669193343,2.1435,172.61,172.58,6.0657]
[1717669193544,2.1434,172.62,172.58,6.0657]
[1717669193745,7.9234,172.62,172.58,6.0657]
[1717669194358,2.1434,172.62,172.59,6.0998]
[1717669194553,7.9234,172.62,172.59,6.0998]
[1717669194870,2.1434,172.62,172.59,6.0998]
[1717669197563,7.9234,172.62,172.59,6.0998]
[1717669198778,7.9234,172.62,172.55,6.0931]
[1717669198959,5.78,172.57,172.54,6.0931]
[1717669199159,5.78,172.56,172.5,22.6198]
[1717669199478,5.78,172.55,172.5,22.7375]
[1717669199775,7.9243,172.55,172.5,22.7375]
[1717669199979,5.78,172.55,172.5,22.7375]
[1717669200361,2.1442,172.56,172.5,22.7375]
[1717669200562,5.78,172.55,172.5,22.7375]
[1717669200878,5.78,172.54,172.5,6.2108]
[1717669201257,7.9245,172.53,172.5,6.2108]
[1717669201458,5.78,172.51,172.47,6.2592]
[1717669201684,2.1445,172.53,172.47,6.2592]
[1717669201975,5.78,172.53,172.47,11.868]
[1717669202155,2.1443,172.55,172.48,5.78]
[1717669202356,2.1441,172.56,172.47,126.088]
[1717669202578,5.78,172.56,172.47,126.088]
[1717669202877,5.78,172.56,172.5,5.78]
[1717669203383,7.9242,172.56,172.5,5.78]
[1717669203985,2.1442,172.56,172.5,5.78]
[1717669204179,5.78,172.55,172.49,5.78]
[1717669204686,5.78,172.57,172.49,120.0]
[1717669204888,33.8375,172.62,172.51,125.78]
[1717669205061,5.78,172.58,172.51,125.78]
[1717669205257,2.1436,172.6,172.52,5.78]
[1717669205564,5.78,172.61,172.55,5.78]
[1717669205773,16.3389,172.67,172.55,5.78]
[1717669205774,2.1433,172.63,172.57,5.78]
[1717669206078,5.78,172.62,172.57,22.2106]
[1717669206379,5.78,172.62,172.58,6.0963]
[1717669206592,7.9234,172.62,172.58,6.0963]
[1717669207894,2.1434,172.62,172.58,6.0963]
[1717669208103,7.9233,172.63,172.58,6.0963]
[1717669208282,7.9233,172.63,172.57,16.4306]
[1717669208606,7.9233,172.63,172.57,22.2106]
[1717669208900,5.78,172.63,172.57,22.2106]
[1717669209795,5.78,172.63,172.57,16.4306]
[1717669210013,7.9233,172.63,172.57,22.2106]
[1717669210917,2.1433,172.63,172.57,16.4306]
[1717669211283,5.78,172.62,172.57,22.8844]
[1717669211990,2.1432,172.64,172.6,6.0278]
[1717669212190,5.78,172.63,172.6,6.0278]
[1717669214099,5.78,172.63,172.57,12.4056]
[1717669217217,5.78,172.63,172.57,6.6256]
[1717669217414,5.78,172.63,172.57,12.4056]
[1717669218614,2.1432,172.64,172.57,12.4056]
[1717669219207,5.78,172.63,172.57,12.4056]
[1717669221519,5.78,172.63,172.57,6.6256]
[1717669221713,5.78,172.63,172.57,12.4056]
[1717669227438,5.78,172.62,172.56,11.9043]
[1717669227618,5.78,172.62,172.58,6.1243]
[1717669228032,5.78,172.62,172.55,6.2079]
[1717669228214,5.78,172.59,172.55,6.2079]
[1717669228419,5.78,172.58,172.52,3.04248038]
[1717669228633,5.78,172.55,172.51,6.3866]
[1717669229046,5.78,172.54,172.49,15.20908038]
[1717669229346,5.78,172.54,172.49,12.1666]
[1717669229520,2.1441,172.56,172.49,6.3866]
[1717669229720,5.78,172.53,172.47,5.78]
[1717669229929,5.78,172.52,172.46,25.01458038]
[1717669230127,5.78,172.52,172.47,5.798]
[1717669230330,5.78,172.52,172.48,6.3866]
[1717669230534,5.78,172.53,172.47,154.1567]
[1717669230737,5.78,172.54,172.48,5.78]
[1717669230921,5.78,172.54,172.49,6.3866]
[1717669231331,2.1439,172.58,172.48,6.3866]
[1717669231544,6.4397,172.64,172.53,120.0]
[1717669231835,6.4397,172.64,172.55,11.9547]
[1717669231836,5.78,172.6,172.55,11.9547]
[1717669232044,5.78,172.6,172.55,6.1747]
[1717669232628,5.78,172.59,172.55,6.1747]
[1717669232824,5.78,172.59,172.53,5.78]
[1717669233135,5.78,172.57,172.51,11.9547]
[1717669233343,5.78,172.57,172.52,20.0]
[1717669233546,5.78,172.56,172.52,20.0]
[1717669233731,5.78,172.55,172.52,20.0]
[1717669234146,5.78,172.55,172.48,3.04248038]
[1717669234327,5.78,172.53,172.48,3.04248038]
[1717669234519,5.78,172.53,172.47,34.0132]
[1717669235121,5.78,172.53,172.48,120.0]
[1717669235328,5.78,172.53,172.48,126.236]
[1717669235628,5.78,172.54,172.48,126.236]
[1717669235823,8.5829,172.64,172.51,5.78]
[1717669236023,2.1435,172.61,172.52,125.78]
[1717669236241,5.78,172.58,172.52,125.78]
[1717669236446,2.1435,172.61,172.52,128.82248038]
[1717669236650,2.1435,172.61,172.53,5.78]
[1717669236651,5.78,172.59,172.53,5.78]
[1717669236949,2.1435,172.61,172.53,5.78]
[1717669237249,5.78,172.59,172.53,8.82248038]
[1717669237635,2.1435,172.62,172.53,8.82248038]
[1717669237822,5.78,172.59,172.53,8.82248038]
[1717669238426,2.1435,172.61,172.53,8.82248038]
[1717669238652,5.78,172.59,172.53,8.82248038]
[1717669239451,5.78,172.58,172.53,15.06758038]
[1717669239949,5.78,172.58,172.54,6.1063]
[1717669241452,2.1435,172.61,172.54,6.1063]
[1717669241671,2.1435,172.61,172.55,6.1063]
[1717669241672,5.78,172.59,172.55,6.1063]
[1717669241857,45.0,172.63,172.55,6.1063]
[1717669242166,5.78,172.59,172.55,6.1063]
[1717669247052,49.2867,172.63,172.55,6.1063]
[1717669247358,5.78,172.59,172.55,6.1063]
[1717669247753,2.1436,172.61,172.55,6.1063]
[1717669248534,5.78,172.6,172.54,3.04248038]
[1717669248734,5.78,172.6,172.54,8.82248038]
[1717669249049,5.78,172.59,172.54,9.31838038]
[1717669249735,5.78,172.59,172.54,15.11638038]
[1717669249942,5.78,172.59,172.54,9.31838038]
[1717669250142,5.78,172.59,172.54,6.2759]
[1717669251443,7.9236,172.6,172.54,6.2759]
[1717669253441,7.9236,172.6,172.54,9.31838038]
[1717669258371,7.9236,172.6,172.54,3.04248038]
[1717669261066,2.1436,172.6,172.54,3.04248038]
[1717669261271,7.9236,172.6,172.54,3.04248038]
[1717669266776,5.78,172.59,172.54,3.04248038]
[1717669266976,5.78,172.59,172.54,9.64138038]
[1717669267969,5.78,172.59,172.54,15.43938038]
[1717669268159,5.78,172.59,172.54,9.64138038]
[1717669268372,5.78,172.59,172.54,15.43938038]
[1717669268680,5.78,172.59,172.54,9.64138038]
[1717669268974,2.1439,172.58,172.54,3.04248038]
[1717669269153,5.78,172.55,172.53,3.04248038]
[1717669269359,5.78,172.54,172.53,3.04248038]
[1717669269563,2.144,172.58,172.51,20.0]
[1717669269763,5.78,172.54,172.51,20.0]
[1717669270284,2.1439,172.58,172.51,26.0584]
[1717669270590,5.78,172.55,172.52,9.10088038]
[1717669270756,45.0,172.59,172.52,9.10088038]
[1717669270757,5.78,172.54,172.52,3.04248038]
[1717669271083,5.78,172.54,172.51,3.04248038]
[1717669272663,5.78,172.54,172.5,23.04248038]
[1717669272867,4.2876,172.59,172.5,29.44378038]
[1717669273072,2.144,172.58,172.51,3.04248038]
[1717669273272,5.78,172.55,172.51,9.44378038]
[1717669275083,5.78,172.55,172.51,3.04248038]
[1717669275586,2.144,172.57,172.51,3.04248038]
[1717669275790,5.78,172.55,172.51,3.04248038]
[1717669279001,18.908727,172.62,172.53,120.0]
[1717669279218,2.1436,172.61,172.53,125.78]
[1717669279423,5.78,172.59,172.53,128.82248038]
[1717669279716,5.78,172.59,172.54,9.17608038]
[1717669280710,5.78,172.59,172.54,11.4893212]
[1717669280918,5.78,172.59,172.55,2.31310676]
[1717669281118,5.78,172.59,172.55,8.82570676]
[1717669282424,5.78,172.59,172.55,6.5126]
[1717669283116,5.78,172.59,172.55,9.55508038]
[1717669283913,5.78,172.59,172.55,15.35308038]
[1717669284423,5.78,172.59,172.55,9.55508038]
[1717669285026,5.78,172.59,172.55,15.35308038]
[1717669285228,5.78,172.59,172.55,9.55508038]
[1717669286237,5.78,172.59,172.55,15.35308038]
[1717669286604,5.78,172.59,172.55,9.55508038]
[1717669287130,5.78,172.59,172.55,15.35308038]
[1717669287434,5.78,172.59,172.55,9.55508038]
[1717669288103,5.78,172.59,172.55,15.35308038]
[1717669288604,5.78,172.59,172.55,9.55508038]
[1717669289001,2.1436,172.61,172.55,15.35308038]
[1717669289322,5.78,172.61,172.56,120.0]
[1717669289507,2.1433,172.63,172.57,6.0782]
[1717669289713,5.78,172.62,172.57,6.0782]
[1717669289907,2.1433,172.63,172.57,6.0782]
[1717669290111,5.78,172.62,172.57,6.0782]
[1717669290311,5.78,172.62,172.57,9.12068038]
[1717669290499,2.1433,172.63,172.57,9.12068038]
[1717669290704,7.9234,172.62,172.57,9.12068038]
[1717669291121,7.9234,172.62,172.57,10.77517154]
[1717669291313,5.78,172.62,172.58,1.65439529]
[1717669292024,14.61781327,172.66,172.59,1.65616491]
[1717669292226,2.1429,172.66,172.6,120.0]
[1717669292426,5.78,172.65,172.61,6.3969]
[1717669293517,2.1429,172.66,172.61,6.3969]
[1717669293715,5.78,172.65,172.61,6.3969]
[1717669296239,7.923,172.65,172.61,6.3969]
[1717669298022,5.78,172.65,172.61,6.3969]
[1717669300309,2.1429,172.66,172.62,120.0]
[1717669300517,5.78,172.65,172.62,126.0968]